bitfinex-derivatives/quotes_BTCF0:USTF0_20250119
["timestamp","ask_amount","ask_price","bid_price","bid_amount"]
[1737324312450,0.48613603,103220.0,103190.0,0.00010678]
[1737324312451,0.3608,103200.0,103190.0,0.00010678]
[1737324312646,0.84693602,103200.0,103150.0,0.3608]
[1737324312847,0.3608,103160.0,103140.0,0.2727]
[1737324313153,0.48613602,103180.0,103160.0,0.048533]
[1737324313342,0.48613602,103190.0,103160.0,0.048533]
[1737324313655,8.904e-05,103180.0,103170.0,0.409329]
[1737324313842,4e-08,103180.0,103170.0,0.048529]
[1737324314047,4e-08,103180.0,103170.0,0.83466502]
[1737324314246,4e-08,103180.0,103170.0,1.12512502]
[1737324315051,1e-08,103220.0,103210.0,0.04851]
[1737324315252,1e-08,103220.0,103210.0,0.53464602]
[1737324315442,1e-08,103220.0,103210.0,0.83464602]
[1737324316157,1e-08,103220.0,103210.0,0.83471827]
[1737324316347,0.3608,103280.0,103260.0,0.048482]
[1737324316546,0.47519988,103300.0,103270.0,0.12533602]
[1737324316749,0.1,103300.0,103290.0,0.048472]
[1737324317357,0.1,103300.0,103290.0,0.17380802]
[1737324317550,0.3608,103320.0,103290.0,0.17380802]
[1737324317551,0.3608,103330.0,103320.0,0.048458]
[1737324317852,0.3608,103350.0,103310.0,0.48613602]
[1737324318157,0.3608,103350.0,103340.0,0.048449]
[1737324318353,0.36225323,103360.0,103340.0,0.048449]
[1737324318553,0.3608,103350.0,103320.0,0.048456]
[1737324318851,0.3608,103340.0,103320.0,0.048456]
[1737324319054,0.3608,103330.0,103300.0,0.048466]
[1737324319245,0.3608,103320.0,103300.0,0.048466]
[1737324319448,0.3608,103310.0,103290.0,0.04855358]
[1737324319652,0.3608,103300.0,103290.0,0.04855358]
[1737324319956,0.53460302,103300.0,103250.0,0.2973]
[1737324320256,0.3608,103280.0,103260.0,0.048485]
[1737324320557,0.3608,103290.0,103270.0,0.048481]
[1737324320852,0.48613602,103310.0,103260.0,0.3608]
[1737324321053,7.641e-05,103300.0,103280.0,0.3608]
[1737324321245,7.641e-05,103300.0,103290.0,0.048472]
[1737324321451,0.06775,103310.0,103300.0,0.048468]
[1737324321657,0.3608,103330.0,103310.0,0.048461]
[1737324321848,0.3608,103340.0,103330.0,0.048453]
[1737324322051,0.36225323,103360.0,103340.0,0.048448]
[1737324322250,0.40094323,103360.0,103340.0,0.048448]
[1737324322455,0.03869,103360.0,103350.0,0.53458002]
[1737324322657,0.39949,103360.0,103350.0,0.048444]
[1737324322851,0.03869,103360.0,103350.0,0.048444]
[1737324323050,0.3608,103380.0,103360.0,0.048436]
[1737324323358,0.3608,103380.0,103370.0,0.048435]
[1737324323659,0.3608,103380.0,103360.0,0.048439]
[1737324323957,0.3608,103390.0,103370.0,0.048431]
[1737324324360,0.3608,103390.0,103380.0,0.04843]
[1737324324952,0.4608,103400.0,103380.0,0.04843]
[1737324325158,0.0677,103390.0,103380.0,0.04843]
[1737324325353,0.0677,103390.0,103380.0,0.53456602]
[1737324325551,1e-08,103390.0,103380.0,0.83456602]
[1737324325750,1e-08,103390.0,103380.0,0.53456602]
[1737324326052,1e-08,103390.0,103380.0,0.17376602]
[1737324326248,1e-08,103390.0,103380.0,0.53456602]
[1737324326458,1e-08,103390.0,103380.0,0.04843]
[1737324326659,1e-08,103390.0,103380.0,0.40923]
[1737324326859,0.08306513,103390.0,103380.0,0.04843]
[1737324327158,0.44386513,103390.0,103380.0,0.04843]
[1737324327357,0.08306513,103390.0,103380.0,0.04843]
[1737324327548,0.44386513,103390.0,103380.0,0.04843]
[1737324327748,0.44386513,103390.0,103380.0,0.40923]
[1737324327749,1.3e-07,103390.0,103380.0,0.40923]
[1737324327958,0.24919537,103430.0,103410.0,0.048416]
[1737324328258,0.60999537,103430.0,103410.0,0.048414]
[1737324328452,0.3608,103420.0,103380.0,0.20614348]
[1737324328648,0.3608,103410.0,103400.0,0.04842]
[1737324328850,0.3608,103410.0,103370.0,0.48613602]
[1737324329154,0.3608,103380.0,103360.0,0.048436]
[1737324329353,0.3608,103390.0,103380.0,0.04843]
[1737324329554,0.36087358,103390.0,103360.0,0.048435]
[1737324329857,0.47120259,103390.0,103370.0,0.048433]
[1737324330159,0.47120259,103390.0,103380.0,0.04843]
[1737324330557,0.36087358,103390.0,103380.0,0.04843]
[1737324330956,0.36087358,103390.0,103360.0,0.048439]
[1737324331261,0.7216,103370.0,103350.0,0.048443]
[1737324331447,0.36087454,103360.0,103340.0,0.04853307]
[1737324331649,0.3608,103350.0,103340.0,8.507e-05]
[1737324332050,0.36088508,103350.0,103340.0,8.507e-05]
[1737324332465,8.508e-05,103350.0,103340.0,0.04853407]
[1737324332652,8.508e-05,103350.0,103340.0,0.12533602]
[1737324332852,8e-08,103350.0,103340.0,0.48613602]
[1737324333066,0.02836864,103360.0,103350.0,0.048444]
[1737324333265,0.3608,103390.0,103350.0,0.409244]
[1737324333556,0.3608,103410.0,103380.0,0.3608]
[1737324333763,0.3608,103420.0,103410.0,0.048413]
[1737324333962,0.3608701,103420.0,103400.0,0.048417]
[1737324334151,0.3608,103410.0,103400.0,0.048417]
[1737324334757,0.3608701,103420.0,103410.0,0.048416]
[1737324334952,1.27400814,103450.0,103410.0,0.048416]
[1737324334953,0.66537212,103450.0,103410.0,0.048416]
[1737324335154,0.66537212,103450.0,103430.0,0.048406]
[1737324335358,0.66537212,103450.0,103420.0,0.12533602]
[1737324335558,0.30457212,103450.0,103440.0,0.409202]
[1737324335967,0.30461724,103450.0,103440.0,0.048402]
[1737324336357,0.30461724,103450.0,103440.0,0.770002]
[1737324336562,0.30461724,103450.0,103440.0,0.89533802]
[1737324336970,0.30461724,103450.0,103440.0,0.53453802]
[1737324337361,0.05538018,103460.0,103450.0,0.048396]
[1737324337563,0.05538018,103460.0,103450.0,0.409196]
[1737324337964,0.05538018,103470.0,103450.0,0.048396]
[1737324338167,0.41618018,103470.0,103450.0,0.048395]
[1737324338365,0.41618018,103470.0,103460.0,0.048391]
[1737324338366,0.05538018,103470.0,103460.0,0.048391]
[1737324338566,0.05538018,103470.0,103460.0,0.53452702]
[1737324338973,0.35994887,103480.0,103470.0,0.048386]
[1737324339474,0.35994887,103480.0,103470.0,0.409183]
[1737324339768,0.35994887,103480.0,103450.0,0.409191]
[1737324339769,0.72074887,103480.0,103450.0,0.409191]
[1737324339968,0.3608,103470.0,103450.0,0.048391]
[1737324340173,0.82403229,103480.0,103450.0,0.409191]
[1737324340472,0.05438441,103470.0,103460.0,0.53452302]
[1737324341463,0.35994887,103480.0,103470.0,0.048384]
[1737324341668,0.3201845,103500.0,103490.0,0.048375]
[1737324341669,0.1,103500.0,103490.0,0.048375]
[1737324341871,0.2201845,103520.0,103510.0,0.048365]
[1737324342061,0.2201845,103520.0,103510.0,0.89530102]
[1737324342267,0.2201845,103520.0,103510.0,0.769965]
[1737324342466,0.2201845,103520.0,103510.0,0.048365]
[1737324342661,0.00056001,103550.0,103510.0,0.17370102]
[1737324342862,0.6293235,103570.0,103540.0,0.048349]
[1737324343070,0.409142,103560.0,103530.0,0.3608]
[1737324343266,0.39066,103560.0,103540.0,0.048351]
[1737324343463,0.02986,103560.0,103530.0,0.12533602]
[1737324343667,0.02986,103560.0,103550.0,0.409147]
[1737324343873,0.02986,103560.0,103550.0,0.53448302]
[1737324344078,0.509126,103600.0,103550.0,0.53448302]
[1737324344079,0.048306,103640.0,103580.0,0.048333]
[1737324344266,0.55315224,103650.0,103600.0,0.17365902]
[1737324344471,0.3608,103630.0,103610.0,0.048319]
[1737324344679,0.3644,103620.0,103600.0,0.17366102]
[1737324344868,0.3608,103610.0,103580.0,0.17367002]
[1737324345076,0.3644,103620.0,103580.0,0.17367002]
[1737324345276,0.0036,103620.0,103600.0,0.3608]
[1737324345871,0.0036,103620.0,103610.0,0.3608]
[1737324346164,0.00553012,103620.0,103610.0,0.3608]
[1737324346379,0.00553012,103620.0,103600.0,0.3608]
[1737324346678,0.00553012,103620.0,103580.0,0.53446902]
[1737324346679,0.00193031,103610.0,103580.0,0.53446902]
[1737324346971,0.3608,103600.0,103580.0,0.3608]
[1737324347171,0.3608,103600.0,103560.0,0.46697902]
[1737324347172,0.4110565,103600.0,103560.0,0.53447902]
[1737324347483,0.048332,103590.0,103560.0,0.3608]
[1737324347874,0.0019305,103600.0,103580.0,0.3608]
[1737324348069,0.78093602,103620.0,103580.0,0.3608]
[1737324348265,0.78093602,103620.0,103600.0,0.53446002]
[1737324348266,0.0036,103620.0,103600.0,0.53446002]
[1737324348579,0.409098,103660.0,103620.0,0.048315]
[1737324348876,0.3608,103660.0,103630.0,0.409111]
[1737324349081,0.3608,103660.0,103630.0,0.3608]
[1737324349279,0.3608,103670.0,103640.0,0.409106]
[1737324349670,0.3608,103660.0,103620.0,0.48613602]
[1737324349980,0.3608,103660.0,103640.0,0.17363902]
[1737324350178,0.3608,103670.0,103640.0,0.12533602]
[1737324350374,0.3608,103650.0,103620.0,0.048311]
[1737324350575,0.3608,103650.0,103620.0,0.409111]
[1737324350775,0.409097,103660.0,103620.0,0.53444702]
[1737324351178,0.3608,103640.0,103600.0,1.05425602]
[1737324351473,0.3608,103640.0,103590.0,0.6516]
[1737324351474,0.3608,103630.0,103590.0,0.48613602]
[1737324351676,0.3608,103640.0,103600.0,0.3608]
[1737324351873,0.3608,103650.0,103620.0,0.409114]
[1737324352075,0.409098,103660.0,103630.0,0.12533602]
[1737324352269,0.7216,103640.0,103600.0,0.48613602]
[1737324352480,0.3608,103630.0,103600.0,0.53445802]
[1737324352677,0.3608,103650.0,103620.0,0.12533602]
[1737324352875,0.3608,103630.0,103610.0,0.048319]
[1737324353075,0.3608,103630.0,103610.0,0.409119]
[1737324353284,0.3608,103640.0,103610.0,0.048319]
[1737324353478,0.409106,103640.0,103610.0,0.048319]
[1737324353775,0.409106,103640.0,103600.0,0.17365902]
[1737324353980,0.3608,103630.0,103600.0,0.53445902]
[1737324354382,0.3608,103610.0,103580.0,0.04844554]
[1737324354776,0.409126,103600.0,103580.0,0.00011354]
[1737324354978,0.3608,103590.0,103570.0,0.00144779]
[1737324355190,0.3608,103590.0,103520.0,0.062841]
[1737324355191,0.48613602,103580.0,103520.0,0.53449502]
[1737324355480,0.409146,103560.0,103530.0,0.048355]
[1737324355676,0.409146,103560.0,103520.0,0.48613602]
[1737324355877,0.409146,103560.0,103520.0,0.53449702]
[1737324356076,0.00011354,103550.0,103520.0,0.53449702]
[1737324356277,0.36091354,103550.0,103520.0,0.53449702]
[1737324356479,0.00011354,103550.0,103520.0,0.53449702]
[1737324356772,0.00011354,103550.0,103530.0,0.409156]
[1737324356976,0.00011354,103550.0,103540.0,0.53448802]
[1737324358781,0.3608,103580.0,103550.0,0.048345]
[1737324358986,0.3608,103590.0,103570.0,0.048338]
[1737324359287,0.42836,103600.0,103580.0,0.12533602]
[1737324359582,0.06756,103600.0,103580.0,0.53447002]
[1737324360190,0.06756,103600.0,103590.0,0.409129]
[1737324360488,0.06756,103600.0,103590.0,0.048329]
[1737324361083,0.06756,103600.0,103590.0,0.409129]
[1737324361590,0.647,103660.0,103630.0,0.048309]
[1737324361788,0.695298,103660.0,103630.0,0.3608]
[1737324362390,0.39938,103670.0,103640.0,0.48613602]
[1737324362591,0.3608,103670.0,103640.0,0.53444102]
[1737324363186,0.3608,103660.0,103640.0,0.048305]
[1737324363388,0.409092,103670.0,103640.0,0.409105]
[1737324363583,0.409092,103670.0,103640.0,0.53444102]
[1737324363885,0.36224922,103650.0,103620.0,0.53444702]
[1737324364088,0.409106,103640.0,103600.0,0.53445702]
[1737324364281,0.409106,103640.0,103600.0,0.048321]
[1737324364486,0.048306,103640.0,103620.0,0.3608]
[1737324364683,0.409106,103640.0,103610.0,0.048318]
[1737324365190,0.40911,103630.0,103610.0,0.3608]
[1737324365393,0.40911,103630.0,103600.0,0.048323]
[1737324366090,0.3608,103610.0,103580.0,0.12533602]
[1737324366396,0.409121,103610.0,103580.0,0.048333]
[1737324366795,0.048326,103600.0,103570.0,0.0484257]
[1737324367095,0.04833,103590.0,103570.0,8.87e-05]
[1737324367299,0.40913,103590.0,103570.0,8.87e-05]
[1737324367502,0.3608,103580.0,103570.0,8.87e-05]
[1737324367703,0.3608,103590.0,103570.0,8.87e-05]
[1737324368206,0.03861,103600.0,103590.0,0.048331]
[1737324368407,0.03861,103600.0,103590.0,0.409131]
[1737324368597,0.9445,103640.0,103590.0,0.3608]
[1737324368798,0.9445,103640.0,103610.0,0.17365602]
[1737324368799,0.99281,103640.0,103610.0,0.17365602]
[1737324368999,0.41055422,103650.0,103620.0,0.048316]
[1737324369194,0.409108,103640.0,103610.0,0.17365702]
[1737324369398,0.3608,103630.0,103610.0,0.12533602]
[1737324369597,0.3608,103630.0,103600.0,0.409126]
[1737324369598,0.409113,103630.0,103600.0,0.409126]
[1737324370005,0.048318,103620.0,103590.0,0.53446602]
[1737324370304,0.3608,103630.0,103590.0,0.48613602]
[1737324370499,0.409111,103630.0,103600.0,0.048324]
[1737324370708,0.476651,103630.0,103590.0,0.48613602]
[1737324370898,0.06754,103630.0,103600.0,0.409124]
[1737324371105,0.10613,103630.0,103600.0,0.409124]
[1737324371304,0.10613,103630.0,103620.0,0.048315]
[1737324371700,0.10613,103630.0,103620.0,0.409115]
[1737324372506,0.10613,103630.0,103620.0,0.769915]
[1737324372696,0.00144922,103650.0,103630.0,0.048306]
[1737324372900,0.00144922,103650.0,103630.0,0.53444202]
[1737324373102,0.00144922,103650.0,103640.0,0.409104]
[1737324373405,0.3608,103650.0,103620.0,0.3608]
[1737324373704,0.04831,103630.0,103600.0,0.53445802]
[1737324373910,0.40911,103630.0,103600.0,0.53445802]
[1737324374096,0.409115,103620.0,103590.0,0.53446402]
[1737324374504,0.409122,103610.0,103590.0,0.3608]
[1737324374709,0.048329,103590.0,103570.0,8.87e-05]
[1737324374902,0.409129,103590.0,103570.0,8.87e-05]
[1737324375101,0.048333,103580.0,103570.0,8.87e-05]
[1737324375612,0.409133,103580.0,103570.0,8.87e-05]
[1737324377009,0.048333,103580.0,103570.0,8.87e-05]
[1737324377612,0.409133,103580.0,103570.0,8.87e-05]
[1737324377805,0.409133,103580.0,103540.0,0.048351]
[1737324377806,0.048342,103560.0,103540.0,0.048351]
[1737324378003,0.409142,103560.0,103530.0,0.53449102]
[1737324378198,0.048352,103540.0,103520.0,0.40916]
[1737324378513,0.115952,103540.0,103520.0,0.40916]
[1737324378814,0.40916,103530.0,103500.0,0.22533602]
[1737324379004,0.409162,103520.0,103500.0,0.22533602]
[1737324379202,0.048362,103520.0,103500.0,0.22533602]
[1737324379407,0.409159,103530.0,103500.0,0.27370502]
[1737324379700,8.87e-05,103520.0,103500.0,0.1]
[1737324379906,0.409165,103510.0,103500.0,0.1]
[1737324380709,0.4092537,103510.0,103500.0,0.1]
[1737324381306,0.4092537,103510.0,103480.0,0.00144911]
[1737324381307,0.048371,103500.0,103480.0,0.00144911]
[1737324381505,0.048375,103490.0,103480.0,0.00144911]
[1737324381707,0.0484578,103490.0,103480.0,0.00144911]
[1737324381912,8.28e-05,103490.0,103480.0,0.00144911]
[1737324382104,8.28e-05,103490.0,103480.0,0.04982811]
[1737324382310,8.28e-05,103490.0,103480.0,0.41062811]
[1737324382518,8.28e-05,103490.0,103480.0,0.04982811]
[1737324383421,8.28e-05,103490.0,103480.0,0.36224911]
[1737324383617,0.0484568,103490.0,103480.0,0.00144911]
[1737324384326,8.28e-05,103490.0,103480.0,0.00144911]
[1737324385214,0.4092568,103490.0,103470.0,0.12542658]
[1737324385416,0.0484568,103490.0,103470.0,0.12542658]
[1737324386124,0.409179,103480.0,103470.0,9.056e-05]
[1737324387924,0.4092677,103480.0,103470.0,9.056e-05]
[1737324388815,0.709179,103480.0,103440.0,0.12533602]
[1737324389019,0.409189,103460.0,103440.0,0.12533602]
[1737324389723,9.551e-05,103450.0,103440.0,0.48613602]
[1737324390426,9.551e-05,103450.0,103440.0,0.3608]
[1737324390931,0.04848851,103450.0,103440.0,0.3608]
[1737324391115,0.04848851,103450.0,103420.0,0.3608]
[1737324391312,0.048398,103440.0,103420.0,0.3608]
[1737324391620,0.40928851,103450.0,103420.0,0.3608]
[1737324392021,0.04848851,103450.0,103430.0,0.12533602]
[1737324392226,9.551e-05,103450.0,103440.0,0.3608]
[1737324392634,0.048375,103490.0,103440.0,0.3608]
[1737324392831,0.409175,103490.0,103460.0,0.12533602]
[1737324393029,0.409175,103490.0,103460.0,0.48613602]
[1737324393331,0.3608,103470.0,103440.0,0.48613602]
[1737324393630,8.375e-05,103460.0,103440.0,0.48613602]
[1737324393828,8.375e-05,103460.0,103450.0,0.3608]
[1737324395923,0.409169,103500.0,103450.0,0.18637261]
[1737324396229,0.00052001,103510.0,103490.0,0.48613602]
[1737324396435,0.10846158,103520.0,103500.0,0.3608]
[1737324396631,0.10846158,103520.0,103510.0,0.48613602]
[1737324396931,0.18506243,103520.0,103480.0,0.48613602]
[1737324397136,0.3608,103510.0,103480.0,0.12533602]
[1737324397430,0.409174,103490.0,103460.0,0.48613602]
[1737324397637,0.409165,103510.0,103480.0,0.12533602]
[1737324397826,0.40916,103520.0,103500.0,0.12533602]
[1737324398135,0.3608,103530.0,103500.0,0.48613602]
[1737324398136,0.409156,103530.0,103500.0,0.48613602]
[1737324398329,0.409156,103530.0,103510.0,0.3608]
[1737324398534,0.409156,103530.0,103510.0,0.15734713]
[1737324398735,0.3608,103530.0,103520.0,0.12533602]
[1737324398937,0.06761,103530.0,103520.0,0.48613602]
[1737324399122,0.06761,103530.0,103480.0,9.58e-05]
[1737324399123,0.42841,103530.0,103490.0,0.671]
[1737324399329,0.3608,103520.0,103510.0,0.12533602]
[1737324399935,0.40916,103520.0,103490.0,0.43553602]
[1737324400138,0.3608,103510.0,103490.0,0.17370902]
[1737324400336,0.3608,103510.0,103490.0,0.53450902]
[1737324400737,0.3608,103520.0,103500.0,0.409169]
[1737324401128,0.06761,103530.0,103510.0,0.53450002]
[1737324401332,0.06761,103530.0,103520.0,0.3608]
[1737324401529,0.06761,103530.0,103510.0,0.17370002]
[1737324401839,0.3608,103520.0,103510.0,0.17370002]
[1737324402042,0.42841,103530.0,103510.0,0.17370002]
[1737324402537,0.06761,103530.0,103510.0,0.53450002]
[1737324402737,0.06761,103530.0,103510.0,0.48613602]
[1737324402936,0.06761,103530.0,103520.0,0.40916]
[1737324403231,0.41059276,103560.0,103520.0,0.40916]
[1737324403232,0.36225076,103560.0,103540.0,0.04835]
[1737324403438,0.36225076,103560.0,103540.0,0.17368602]
[1737324403737,0.36225076,103560.0,103540.0,0.53448602]
[1737324403929,0.36225076,103560.0,103540.0,0.17368602]
[1737324404334,0.36225076,103560.0,103540.0,0.53448602]
[1737324404735,0.36225076,103560.0,103550.0,0.048346]
[1737324405135,0.36225076,103560.0,103540.0,0.48613602]
[1737324405936,0.3608,103550.0,103510.0,1.11700324]
[1737324406240,0.3608,103540.0,103520.0,0.04836]
[1737324406438,0.36225076,103560.0,103520.0,0.48613602]
[1737324406631,0.36225076,103560.0,103540.0,0.53448402]
[1737324407345,0.36225076,103560.0,103540.0,0.17368402]
[1737324407636,0.3608,103550.0,103530.0,0.048353]
[1737324407840,0.3608,103540.0,103510.0,0.12533602]
[1737324408033,0.3608,103520.0,103500.0,0.568247]
[1737324408231,0.3608,103540.0,103510.0,0.12533602]
[1737324408430,0.409147,103550.0,103520.0,0.048359]
[1737324408733,0.36225076,103560.0,103530.0,0.12533602]
[1737324408932,0.3608,103550.0,103530.0,0.17368802]
[1737324409141,0.3608,103540.0,103530.0,0.17368802]
[1737324409438,0.3608,103540.0,103530.0,0.12533602]
[1737324409636,0.3608,103550.0,103510.0,0.48613602]
[1737324409841,0.3608,103540.0,103530.0,0.12533602]
[1737324410142,0.4284,103540.0,103530.0,0.17369102]
[1737324410834,0.048357,103530.0,103500.0,0.17370502]
[1737324411137,0.3608,103510.0,103480.0,0.78193182]
[1737324411343,0.3608,103510.0,103490.0,0.048373]
[1737324411736,0.409166,103510.0,103480.0,0.17380982]
[1737324411939,0.409174,103490.0,103470.0,0.00144917]
[1737324412146,0.3608,103480.0,103470.0,0.04983217]
[1737324412340,0.3608,103490.0,103470.0,0.17516819]
[1737324412546,0.3608,103490.0,103480.0,0.048378]
[1737324412931,0.3608,103500.0,103470.0,0.12678519]
[1737324413135,7.013e-05,103490.0,103480.0,0.048376]
[1737324413839,0.36087013,103490.0,103470.0,0.17516819]
[1737324414845,0.3608,103480.0,103470.0,0.00144917]
[1737324415540,0.409178,103480.0,103470.0,0.00144917]
[1737324415739,0.3608958,103480.0,103440.0,0.17384672]
[1737324415941,0.409187,103470.0,103440.0,0.17384672]
[1737324416131,0.3608,103470.0,103460.0,0.12533602]
[1737324416435,0.4092748,103480.0,103460.0,0.17372202]
[1737324416838,0.3608958,103480.0,103460.0,0.17372202]
[1737324417138,9.58e-05,103480.0,103470.0,0.409183]
[1737324417448,9.58e-05,103480.0,103470.0,0.048383]
[1737324417639,0.3608958,103480.0,103470.0,0.048383]
[1737324417843,0.3608958,103480.0,103460.0,0.53452202]
[1737324418036,9.58e-05,103480.0,103460.0,0.53452202]
[1737324418238,9.58e-05,103480.0,103470.0,0.409183]
[1737324418736,9.58e-05,103480.0,103470.0,0.048383]
[1737324418939,9.58e-05,103480.0,103470.0,0.409183]
[1737324419243,0.048383,103470.0,103440.0,0.54459557]
[1737324419443,0.3608,103460.0,103440.0,0.18379557]
[1737324419641,0.3608,103470.0,103440.0,0.18379557]
[1737324419837,0.0484748,103480.0,103450.0,0.40919]
[1737324420039,0.3608,103470.0,103450.0,0.17372602]
[1737324420240,0.4092748,103480.0,103450.0,0.17372602]
[1737324420442,0.3608,103460.0,103440.0,0.3609137]
[1737324420635,0.3608,103470.0,103450.0,0.17372802]
[1737324420834,9.58e-05,103480.0,103460.0,0.048388]
[1737324421241,0.3608958,103480.0,103470.0,0.17371902]
[1737324421439,0.3608958,103480.0,103460.0,0.3608]
[1737324421641,0.3608,103470.0,103440.0,0.3609137]
[1737324421847,9.58e-05,103480.0,103470.0,0.048383]
[1737324422147,0.3608,103510.0,103490.0,0.048372]
[1737324422345,0.3608,103510.0,103480.0,0.12533602]
[1737324422545,0.3608,103500.0,103490.0,0.048373]
[1737324422746,0.409165,103510.0,103480.0,0.12533602]
[1737324422942,0.409165,103510.0,103480.0,0.048378]
[1737324423138,0.3608,103500.0,103490.0,0.048372]
[1737324423338,0.3608,103500.0,103470.0,0.49611062]
[1737324423538,0.048376,103490.0,103460.0,0.47272302]
[1737324423744,0.048376,103490.0,103460.0,0.83352302]
[1737324424041,0.3608,103480.0,103460.0,0.22821135]
[1737324424244,0.3608,103480.0,103460.0,0.10287533]
[1737324424451,0.409179,103480.0,103460.0,0.10287769]
[1737324424751,0.409183,103470.0,103460.0,0.05449069]
[1737324424940,0.3608,103470.0,103460.0,0.05449069]
[1737324425248,0.409179,103480.0,103460.0,0.2211573]
[1737324425447,0.3608,103480.0,103460.0,0.63646564]
[1737324425645,0.3608,103480.0,103460.0,0.27566564]
[1737324425848,0.3608,103470.0,103460.0,0.22727764]
[1737324426046,0.3608,103480.0,103460.0,0.27566564]
[1737324426247,0.476819,103480.0,103460.0,0.27566564]
[1737324426550,0.476819,103480.0,103460.0,0.22727764]
[1737324426551,0.3608,103470.0,103460.0,0.22727764]
[1737324426844,0.3608,103470.0,103460.0,0.22727494]
[1737324427044,0.409183,103470.0,103460.0,0.054504]
[1737324427252,0.3608,103470.0,103460.0,0.054504]
[1737324427647,0.3608,103470.0,103460.0,0.102892]
[1737324427840,0.3608,103470.0,103460.0,0.054504]
[1737324428036,0.06764,103480.0,103460.0,0.463692]
[1737324428240,0.06764,103480.0,103470.0,0.53451902]
[1737324428446,0.06764,103480.0,103470.0,0.22822302]
[1737324429044,0.06764,103480.0,103470.0,0.22821244]
[1737324429252,0.06764,103480.0,103470.0,0.05449342]
[1737324429446,0.476818,103480.0,103450.0,0.048392]
[1737324429642,0.476818,103480.0,103450.0,0.05450076]
[1737324429643,0.3608,103460.0,103450.0,0.05450076]
[1737324429848,0.409188,103460.0,103450.0,0.05450076]
[1737324430139,0.3608,103460.0,103440.0,0.172883]
[1737324430346,0.409192,103450.0,103440.0,0.22738963]
[1737324430551,0.048397,103440.0,103430.0,0.23035907]
[1737324430847,0.409197,103440.0,103430.0,0.23035907]
[1737324431048,0.409197,103440.0,103430.0,0.28487705]
[1737324431346,0.409197,103440.0,103430.0,0.23035907]
[1737324431554,0.048402,103430.0,103420.0,0.28794884]
[1737324431851,0.048402,103430.0,103400.0,0.1]
[1737324431852,0.36091017,103430.0,103400.0,0.1]
[1737324432038,0.53453302,103440.0,103400.0,0.1]
[1737324432039,0.770011,103410.0,103400.0,0.1]
[1737324432338,0.7701247,103410.0,103400.0,0.1]
[1737324432543,0.8088047,103410.0,103400.0,0.1]
[1737324435139,0.8088047,103410.0,103400.0,0.148416]
[1737324435140,0.7603937,103410.0,103400.0,0.148416]
[1737324435346,0.0387937,103410.0,103400.0,0.148416]
[1737324435543,0.3995937,103410.0,103400.0,0.27375202]
[1737324435945,0.3995937,103410.0,103400.0,0.1]
[1737324436147,0.3995937,103410.0,103370.0,0.48625335]
[1737324436148,0.3995937,103410.0,103370.0,0.04854233]
[1737324436352,0.3608,103380.0,103370.0,0.00011733]
[1737324436552,0.048436,103360.0,103310.0,0.12533602]
[1737324436744,0.3608,103330.0,103320.0,0.048453]
[1737324436950,0.3608,103330.0,103300.0,1.87598346]
[1737324437147,0.3608,103330.0,103300.0,1.87115684]
[1737324437346,0.3608,103320.0,103300.0,0.90245684]
[1737324437544,8.326e-05,103310.0,103300.0,0.85882346]
[1737324437751,8.326e-05,103310.0,103300.0,0.90728646]
[1737324437960,8.326e-05,103310.0,103300.0,1.32263809]
[1737324438163,0.29,103390.0,103310.0,0.048456]
[1737324438164,0.3608,103340.0,103310.0,0.048456]
[1737324438460,0.3608,103340.0,103320.0,0.3608]
[1737324438651,0.3608,103340.0,103310.0,0.05455163]
[1737324438855,0.3608,103330.0,103300.0,0.58613602]
[1737324439061,8.275e-05,103320.0,103300.0,0.67823308]
[1737324439248,0.36088275,103320.0,103300.0,0.58613602]
[1737324439451,0.36088275,103320.0,103300.0,0.27988021]
[1737324439744,0.36088275,103320.0,103300.0,0.18485027]
[1737324439944,0.36088275,103320.0,103300.0,0.13030608]
[1737324440149,0.3608,103310.0,103300.0,0.13030608]
[1737324440348,0.53467177,103320.0,103300.0,0.13030608]
[1737324440551,0.3608,103310.0,103300.0,0.13030608]
[1737324440948,8.275e-05,103320.0,103300.0,0.49110608]
[1737324441156,8.275e-05,103320.0,103300.0,0.13030608]
[1737324441452,0.3608,103340.0,103300.0,0.27989019]
[1737324441654,0.3608,103320.0,103300.0,0.15455417]
[1737324441853,0.3608,103320.0,103300.0,0.15456128]
[1737324442056,0.3608,103310.0,103300.0,0.15456128]
[1737324442250,0.40932302,103310.0,103290.0,7.956e-05]
[1737324442555,0.40932302,103310.0,103290.0,0.05456173]
[1737324442556,0.53459902,103300.0,103290.0,0.05456173]
[1737324442856,0.53459902,103300.0,103260.0,0.048481]
[1737324443051,0.53459902,103300.0,103260.0,0.09213226]
[1737324443052,0.3608,103290.0,103260.0,0.09213226]
[1737324443257,0.3608,103300.0,103260.0,0.57826722]
[1737324443446,0.3608,103300.0,103270.0,0.048476]
[1737324443757,6.502e-05,103310.0,103280.0,0.3608]
[1737324443758,0.36086502,103310.0,103280.0,0.3608]
[1737324443953,0.48613602,103300.0,103260.0,0.71686275]
[1737324444148,0.3608,103270.0,103260.0,0.04365024]
[1737324444353,0.36092111,103270.0,103250.0,0.00157686]
[1737324444548,0.36092111,103270.0,103250.0,0.04523132]
[1737324444754,0.36092111,103270.0,103250.0,0.00157686]
[1737324444950,0.36092111,103270.0,103250.0,0.04523454]
[1737324445160,0.00012111,103270.0,103260.0,0.48613602]
[1737324445354,0.3608,103290.0,103260.0,0.57827021]
[1737324445662,0.3608,103290.0,103260.0,0.58918339]
[1737324445862,0.3608,103290.0,103260.0,0.22838339]
[1737324445863,0.3608,103280.0,103260.0,0.22838339]
[1737324446057,0.3608,103280.0,103260.0,0.048481]
[1737324446264,0.3608,103280.0,103250.0,0.00157686]
[1737324446459,0.3608,103290.0,103250.0,0.05006186]
[1737324446958,0.3608,103260.0,103250.0,0.056148]
[1737324447161,0.409281,103260.0,103250.0,0.0546956]
[1737324447668,0.409281,103260.0,103210.0,0.28794884]
[1737324447669,0.0485,103220.0,103210.0,0.28794884]
[1737324447856,0.3608,103220.0,103210.0,0.28794884]
[1737324448465,0.42872214,103220.0,103210.0,0.28794884]
[1737324448866,0.06792214,103220.0,103200.0,0.50931]
[1737324449164,0.42872214,103220.0,103200.0,0.14851]
[1737324449362,0.55405816,103220.0,103200.0,0.1]